[Event "Titled Tuesday Blitz January 31 Late 2023"]
[White "Zierk, Steven"]
[Black "Fernandez Guillen, Ernesto J."]
[WhiteFideId "2034255"]
[BlackFideId "3512428"]
[WhiteElo "2488"]
[BlackElo "2477"]
[Result "1-0"]
[Round "07"]
[TimeControl "180+2"]
[Date "2023.01.31"]
[WhiteClock "0:00:11"]
[BlackClock "0:00:02"]

1. e4 {[%clk 0:03:00]}  e5 {[%clk 0:02:53]} 2. Nf3 {[%clk 0:03:00]}  Nc6 {[%clk 0:02:53]} 3. Bc4 {[%clk 0:03:00]}  g6 {[%clk 0:02:54]} 4. d4 {[%clk 0:02:59]}  exd4 {[%clk 0:02:54]} 5. Nxd4 {[%clk 0:03:00]}  Bg7 {[%clk 0:02:54]} 6. Be3 {[%clk 0:02:58]}  Nge7 {[%clk 0:02:53]} 7. Nc3 {[%clk 0:02:57]}  O-O {[%clk 0:02:52]} 8. O-O {[%clk 0:02:57]}  Ne5 {[%clk 0:02:52]} 9. Be2 {[%clk 0:02:55]}  d5 {[%clk 0:02:52]} 10. f4 {[%clk 0:02:48]}  Nc4 {[%clk 0:02:34]} 11. Bxc4 {[%clk 0:02:48]}  dxc4 {[%clk 0:02:35]} 12. Nf3 {[%clk 0:02:41]}  b6 {[%clk 0:02:13]} 13. Bd4 {[%clk 0:02:35]}  c5 {[%clk 0:02:09]} 14. Bxg7 {[%clk 0:02:34]}  Qxd1 {[%clk 0:02:05]} 15. Raxd1 {[%clk 0:02:35]}  Kxg7 {[%clk 0:02:06]} 16. Ne5 {[%clk 0:02:33]}  Be6 {[%clk 0:02:01]} 17. Nb5 {[%clk 0:02:29]}  Rad8 {[%clk 0:01:34]} 18. Nc7 {[%clk 0:02:23]}  c3 {[%clk 0:01:25]} 19. b3 {[%clk 0:02:13]}  Bc8 {[%clk 0:01:20]} 20. a4 {[%clk 0:02:05]}  Bb7 {[%clk 0:01:12]} 21. Rde1 {[%clk 0:02:00]}  Rd2 {[%clk 0:01:07]} 22. Rf2 {[%clk 0:01:58]}  Rfd8 {[%clk 0:01:03]} 23. Nc4 {[%clk 0:01:55]}  R2d4 {[%clk 0:00:29]} 24. Rfe2 {[%clk 0:01:50]}  Bc6 {[%clk 0:00:25]} 25. g3 {[%clk 0:01:42]}  Rd1 {[%clk 0:00:15]} 26. Kf2 {[%clk 0:01:40]}  Rxe1 {[%clk 0:00:15]} 27. Kxe1 {[%clk 0:01:38]}  Rd4 {[%clk 0:00:15]} 28. e5 {[%clk 0:01:30]}  Nf5 {[%clk 0:00:12]} 29. Nb5 {[%clk 0:01:18]}  Bxb5 {[%clk 0:00:10]} 30. axb5 {[%clk 0:01:19]}  Rd7 {[%clk 0:00:09]} 31. g4 {[%clk 0:01:16]}  Nd4 {[%clk 0:00:09]} 32. Rf2 {[%clk 0:01:12]}  Nxb5 {[%clk 0:00:09]} 33. f5 {[%clk 0:01:12]}  Nd4 {[%clk 0:00:07]} 34. Nd6 {[%clk 0:01:09]}  gxf5 {[%clk 0:00:04]} 35. gxf5 {[%clk 0:01:08]}  Kf8 {[%clk 0:00:04]} 36. Kd1 {[%clk 0:01:03]}  Nc6 {[%clk 0:00:04]} 37. Kc1 {[%clk 0:01:01]}  Nxe5 {[%clk 0:00:04]} 38. Nb5 {[%clk 0:00:59]}  a6 {[%clk 0:00:03]} 39. Nxc3 {[%clk 0:00:59]}  b5 {[%clk 0:00:04]} 40. Ne4 {[%clk 0:00:59]}  c4 {[%clk 0:00:04]} 41. Re2 {[%clk 0:00:56]}  Rd4 {[%clk 0:00:03]} 42. Ng5 {[%clk 0:00:48]}  Nc6 {[%clk 0:00:04]} 43. Nxh7+ {[%clk 0:00:45]}  Kg7 {[%clk 0:00:03]} 44. Ng5 {[%clk 0:00:45]}  c3 {[%clk 0:00:03]} 45. Ne4 {[%clk 0:00:37]}  b4 {[%clk 0:00:03]} 46. h4 {[%clk 0:00:37]}  Ne5 {[%clk 0:00:02]} 47. Nxc3 {[%clk 0:00:34]}  bxc3 {[%clk 0:00:02]} 48. Rxe5 {[%clk 0:00:33]}  Rxh4 {[%clk 0:00:03]} 49. Kd1 {[%clk 0:00:33]}  Rh2 {[%clk 0:00:02]} 50. Rc5 {[%clk 0:00:29]}  Kf6 {[%clk 0:00:02]} 51. Rxc3 {[%clk 0:00:28]}  Kxf5 {[%clk 0:00:03]} 52. Rc6 {[%clk 0:00:28]}  Ke4 {[%clk 0:00:02]} 53. Rf6 {[%clk 0:00:27]}  Rh7 {[%clk 0:00:01]} 54. b4 {[%clk 0:00:24]}  Ke5 {[%clk 0:00:02]} 55. Rxa6 {[%clk 0:00:24]}  f5 {[%clk 0:00:02]} 56. Rc6 {[%clk 0:00:20]}  f4 {[%clk 0:00:02]} 57. Ke2 {[%clk 0:00:20]}  Rh2+ {[%clk 0:00:02]} 58. Kf3 {[%clk 0:00:21]}  Rh3+ {[%clk 0:00:02]} 59. Kg2 {[%clk 0:00:21]}  Ra3 {[%clk 0:00:03]} 60. b5 {[%clk 0:00:21]}  Ra2 {[%clk 0:00:02]} 61. Kf3 {[%clk 0:00:18]}  Rb2 {[%clk 0:00:02]} 62. b6 {[%clk 0:00:17]}  Kd5 {[%clk 0:00:02]} 63. Rc3 {[%clk 0:00:11]} 1-0


[Site "https://www.chess.com"]

[Event "Titled Tuesday Blitz January 31 Late 2023"]
[White "Yoo, Christopher Woojin"]
[Black "Hasanagic, Anel"]
[WhiteFideId "30909694"]
[BlackFideId "14605791"]
[WhiteElo "2607"]
[BlackElo "2243"]
[Result "1-0"]
[Round "07"]
[TimeControl "180+2"]
[Date "2023.01.31"]
[WhiteClock "0:00:04"]
[BlackClock "0:00:02"]

1. e4 {[%clk 0:03:00]}  c6 {[%clk 0:02:58]} 2. d3 {[%clk 0:02:57]}  d5 {[%clk 0:02:59]} 3. Nd2 {[%clk 0:02:56]}  Nf6 {[%clk 0:02:59]} 4. Ngf3 {[%clk 0:02:52]}  Bg4 {[%clk 0:02:59]} 5. h3 {[%clk 0:02:47]}  Bh5 {[%clk 0:02:58]} 6. e5 {[%clk 0:02:33]}  Nfd7 {[%clk 0:02:57]} 7. e6 {[%clk 0:02:26]}  fxe6 {[%clk 0:02:37]} 8. Be2 {[%clk 0:02:22]}  h6 {[%clk 0:01:47]} 9. Nh4 {[%clk 0:02:00]}  Bf7 {[%clk 0:01:40]} 10. Bh5 {[%clk 0:02:00]}  Nf6 {[%clk 0:01:38]} 11. Bxf7+ {[%clk 0:01:56]}  Kxf7 {[%clk 0:01:39]} 12. O-O {[%clk 0:01:45]}  Nbd7 {[%clk 0:01:35]} 13. Re1 {[%clk 0:01:38]}  Qc7 {[%clk 0:01:27]} 14. Qe2 {[%clk 0:01:20]}  e5 {[%clk 0:01:13]} 15. f4 {[%clk 0:01:11]}  e4 {[%clk 0:00:40]} 16. dxe4 {[%clk 0:01:00]}  Qxf4 {[%clk 0:00:19]} 17. Nf5 {[%clk 0:00:41]}  dxe4 {[%clk 0:00:17]} 18. Rf1 {[%clk 0:00:40]}  Qe5 {[%clk 0:00:15]} 19. Nc4 {[%clk 0:00:40]}  Qb5 {[%clk 0:00:07]} 20. a4 {[%clk 0:00:35]}  Qa6 {[%clk 0:00:06]} 21. b4 {[%clk 0:00:27]}  g6 {[%clk 0:00:07]} 22. Ng3 {[%clk 0:00:18]}  Bg7 {[%clk 0:00:03]} 23. Bb2 {[%clk 0:00:17]}  Rhe8 {[%clk 0:00:03]} 24. Nxe4 {[%clk 0:00:10]}  Kg8 {[%clk 0:00:04]} 25. Nc3 {[%clk 0:00:08]}  Nd5 {[%clk 0:00:03]} 26. b5 {[%clk 0:00:05]}  Nxc3 {[%clk 0:00:02]} 27. Qe6+ {[%clk 0:00:04]}  Kh7 {[%clk 0:00:02]} 28. bxa6 {[%clk 0:00:04]} 1-0


[Site "https://www.chess.com"]

[Event "Titled Tuesday Blitz January 31 Late 2023"]
[White "Papasimakopoulos, Alexandros"]
[Black "Rasulov, Vugar"]
[WhiteFideId "4244125"]
[BlackFideId "13402390"]
[WhiteElo "2401"]
[BlackElo "2523"]
[Result "0-1"]
[Round "07"]
[TimeControl "180+2"]
[Date "2023.01.31"]
[WhiteClock "0:00:05"]
[BlackClock "0:00:47"]

1. d4 {[%clk 0:03:00]}  b6 {[%clk 0:02:59]} 2. e4 {[%clk 0:03:00]}  Bb7 {[%clk 0:03:00]} 3. Bd3 {[%clk 0:03:00]}  g6 {[%clk 0:03:00]} 4. Nf3 {[%clk 0:02:58]}  Bg7 {[%clk 0:03:01]} 5. O-O {[%clk 0:02:58]}  d6 {[%clk 0:03:01]} 6. c4 {[%clk 0:02:54]}  Nf6 {[%clk 0:03:02]} 7. Nc3 {[%clk 0:02:55]}  O-O {[%clk 0:03:02]} 8. Re1 {[%clk 0:02:54]}  e5 {[%clk 0:02:58]} 9. d5 {[%clk 0:02:50]}  a5 {[%clk 0:02:55]} 10. b3 {[%clk 0:02:46]}  Na6 {[%clk 0:02:55]} 11. a3 {[%clk 0:02:45]}  Nc5 {[%clk 0:02:54]} 12. Bc2 {[%clk 0:02:45]}  Nh5 {[%clk 0:02:54]} 13. Rb1 {[%clk 0:02:43]}  h6 {[%clk 0:02:50]} 14. b4 {[%clk 0:02:42]}  axb4 {[%clk 0:02:51]} 15. axb4 {[%clk 0:02:43]}  Nd7 {[%clk 0:02:51]} 16. Be3 {[%clk 0:02:32]}  Ndf6 {[%clk 0:02:46]} 17. Nd2 {[%clk 0:02:29]}  Bc8 {[%clk 0:02:42]} 18. f3 {[%clk 0:02:28]}  Nf4 {[%clk 0:02:40]} 19. c5 {[%clk 0:02:23]}  bxc5 {[%clk 0:02:26]} 20. bxc5 {[%clk 0:02:23]}  g5 {[%clk 0:02:26]} 21. cxd6 {[%clk 0:02:17]}  cxd6 {[%clk 0:02:27]} 22. Nc4 {[%clk 0:02:16]}  Ba6 {[%clk 0:02:19]} 23. Nb5 {[%clk 0:02:16]}  Bxb5 {[%clk 0:02:10]} 24. Rxb5 {[%clk 0:02:17]}  Qc7 {[%clk 0:02:10]} 25. Bd3 {[%clk 0:02:09]}  Ra2 {[%clk 0:02:09]} 26. Rb2 {[%clk 0:02:05]}  Rxb2 {[%clk 0:02:09]} 27. Nxb2 {[%clk 0:02:04]}  Qc3 {[%clk 0:02:09]} 28. Qd2 {[%clk 0:02:03]}  Qa3 {[%clk 0:01:58]} 29. Bf1 {[%clk 0:02:00]}  Rc8 {[%clk 0:01:41]} 30. Nc4 {[%clk 0:02:00]}  Qb3 {[%clk 0:01:42]} 31. Nxd6 {[%clk 0:01:45]}  Rc2 {[%clk 0:01:39]} 32. Qa5 {[%clk 0:01:43]}  Qb2 {[%clk 0:01:26]} 33. Bxf4 {[%clk 0:01:43]}  gxf4 {[%clk 0:01:26]} 34. Nf5 {[%clk 0:01:42]}  Bf8 {[%clk 0:01:22]} 35. Qd8 {[%clk 0:01:39]}  Qb4 {[%clk 0:01:04]} 36. Rd1 {[%clk 0:01:24]}  Qc5+ {[%clk 0:01:02]} 37. Kh1 {[%clk 0:01:18]}  Rc1 {[%clk 0:01:02]} 38. Rxc1 {[%clk 0:01:04]}  Qxc1 {[%clk 0:01:03]} 39. Kg1 {[%clk 0:01:05]}  Qc5+ {[%clk 0:01:03]} 40. Kh1 {[%clk 0:01:04]}  Qf2 {[%clk 0:01:04]} 41. h4 {[%clk 0:00:50]}  Nh5 {[%clk 0:01:02]} 42. Bc4 {[%clk 0:00:28]}  Ng3+ {[%clk 0:00:55]} 43. Kh2 {[%clk 0:00:28]}  Nxf5 {[%clk 0:00:51]} 44. exf5 {[%clk 0:00:28]}  e4 {[%clk 0:00:51]} 45. fxe4 {[%clk 0:00:05]}  f3 {[%clk 0:00:48]} 46. Bf1 {[%clk 0:00:05]}  Qxf1 {[%clk 0:00:48]} 47. gxf3 {[%clk 0:00:05]}  Qf2+ {[%clk 0:00:49]} 48. Kh1 {[%clk 0:00:05]}  Qxf3+ {[%clk 0:00:50]} 49. Kh2 {[%clk 0:00:05]}  Qf4+ {[%clk 0:00:50]} 50. Kh3 {[%clk 0:00:05]}  Qxe4 {[%clk 0:00:50]} 51. f6 {[%clk 0:00:03]}  Qf3+ {[%clk 0:00:45]} 52. Kh2 {[%clk 0:00:03]}  Qf4+ {[%clk 0:00:46]} 53. Kh3 {[%clk 0:00:04]}  h5 {[%clk 0:00:46]} 54. Kg2 {[%clk 0:00:02]}  Qxh4 {[%clk 0:00:45]} 55. Kf3 {[%clk 0:00:02]}  Qg4+ {[%clk 0:00:44]} 56. Ke3 {[%clk 0:00:03]}  h4 {[%clk 0:00:45]} 57. d6 {[%clk 0:00:03]}  Qg3+ {[%clk 0:00:45]} 58. Ke4 {[%clk 0:00:04]}  Qxd6 {[%clk 0:00:46]} 59. Qc8 {[%clk 0:00:04]}  Qe6+ {[%clk 0:00:45]} 60. Qxe6 {[%clk 0:00:04]}  fxe6 {[%clk 0:00:46]} 61. Kf4 {[%clk 0:00:05]}  Bd6+ {[%clk 0:00:45]} 62. Kg4 {[%clk 0:00:05]}  Bg3 {[%clk 0:00:45]} 63. f7+ {[%clk 0:00:04]}  Kxf7 {[%clk 0:00:46]} 64. Kh3 {[%clk 0:00:05]}  Kf6 {[%clk 0:00:47]} 0-1


[Site "https://www.chess.com"]

[Event "Titled Tuesday Blitz January 31 Late 2023"]
[White "Predke, Alexandr"]
[Black "Krysa, Leandro"]
[WhiteFideId "24107581"]
[BlackFideId "116807"]
[WhiteElo "2685"]
[BlackElo "2541"]
[Result "1-0"]
[Round "07"]
[TimeControl "180+2"]
[Date "2023.01.31"]
[WhiteClock "0:00:25"]
[BlackClock "0:00:04"]

1. e4 {[%clk 0:03:00]}  e5 {[%clk 0:02:59]} 2. Nf3 {[%clk 0:03:00]}  Nf6 {[%clk 0:03:00]} 3. Qe2 {[%clk 0:02:55]}  Nc6 {[%clk 0:02:58]} 4. d4 {[%clk 0:02:55]}  exd4 {[%clk 0:02:51]} 5. e5 {[%clk 0:02:56]}  Nd5 {[%clk 0:02:51]} 6. Qe4 {[%clk 0:02:56]}  Nb6 {[%clk 0:02:50]} 7. Bd3 {[%clk 0:02:56]}  Nb4 {[%clk 0:02:41]} 8. O-O {[%clk 0:02:51]}  Nxd3 {[%clk 0:02:40]} 9. cxd3 {[%clk 0:02:49]}  Be7 {[%clk 0:02:39]} 10. Qg4 {[%clk 0:02:48]}  g6 {[%clk 0:02:34]} 11. Bh6 {[%clk 0:02:46]}  d6 {[%clk 0:02:24]} 12. Qg3 {[%clk 0:02:43]}  Bf5 {[%clk 0:02:13]} 13. Re1 {[%clk 0:02:26]}  d5 {[%clk 0:01:56]} 14. e6 {[%clk 0:02:19]}  Bxe6 {[%clk 0:01:42]} 15. Nxd4 {[%clk 0:02:10]}  Qd7 {[%clk 0:01:40]} 16. Nc3 {[%clk 0:01:57]}  O-O-O {[%clk 0:01:36]} 17. Ncb5 {[%clk 0:01:58]}  Kb8 {[%clk 0:01:26]} 18. Bf4 {[%clk 0:01:47]}  Na8 {[%clk 0:01:24]} 19. Rac1 {[%clk 0:01:38]}  Rc8 {[%clk 0:01:21]} 20. Qe3 {[%clk 0:01:23]}  b6 {[%clk 0:00:36]} 21. Nc6+ {[%clk 0:01:02]}  Kb7 {[%clk 0:00:36]} 22. Nbxa7 {[%clk 0:00:51]}  Rce8 {[%clk 0:00:25]} 23. Qd4 {[%clk 0:00:45]}  Bd6 {[%clk 0:00:20]} 24. Bxd6 {[%clk 0:00:45]}  Qxd6 {[%clk 0:00:20]} 25. Nb5 {[%clk 0:00:45]}  Qxc6 {[%clk 0:00:16]} 26. Rxc6 {[%clk 0:00:44]}  Kxc6 {[%clk 0:00:17]} 27. Qa4 {[%clk 0:00:42]}  Kd7 {[%clk 0:00:09]} 28. Nd4+ {[%clk 0:00:36]}  Ke7 {[%clk 0:00:09]} 29. Nxe6 {[%clk 0:00:30]}  fxe6 {[%clk 0:00:09]} 30. Qc6 {[%clk 0:00:30]}  Kf7 {[%clk 0:00:09]} 31. Re3 {[%clk 0:00:27]}  Re7 {[%clk 0:00:04]} 32. Rf3+ {[%clk 0:00:26]}  Kg7 {[%clk 0:00:05]} 33. Qc3+ {[%clk 0:00:27]}  Kg8 {[%clk 0:00:04]} 34. Qf6 {[%clk 0:00:25]} 1-0


[Site "https://www.chess.com"]

[Event "Titled Tuesday Blitz January 31 Late 2023"]
[White "Svane, Frederik"]
[Black "Nigmatov, Ortik"]
[WhiteFideId "12923044"]
[BlackFideId "14202131"]
[WhiteElo "2600"]
[BlackElo "2438"]
[Result "1-0"]
[Round "07"]
[TimeControl "180+2"]
[Date "2023.01.31"]
[WhiteClock "0:01:38"]
[BlackClock "0:02:12"]

1. e4 {[%clk 0:03:00]}  c5 {[%clk 0:02:58]} 2. Nf3 {[%clk 0:03:00]}  e6 {[%clk 0:02:59]} 3. Be2 {[%clk 0:02:59]}  d5 {[%clk 0:02:57]} 4. exd5 {[%clk 0:02:59]}  Qxd5 {[%clk 0:02:58]} 5. Nc3 {[%clk 0:02:59]}  Qd8 {[%clk 0:02:58]} 6. d4 {[%clk 0:02:58]}  Nc6 {[%clk 0:02:57]} 7. Be3 {[%clk 0:02:56]}  cxd4 {[%clk 0:02:55]} 8. Nxd4 {[%clk 0:02:57]}  Nxd4 {[%clk 0:02:55]} 9. Qxd4 {[%clk 0:02:56]}  Qxd4 {[%clk 0:02:54]} 10. Bxd4 {[%clk 0:02:57]}  Bd7 {[%clk 0:02:55]} 11. Bf3 {[%clk 0:02:56]}  Bc6 {[%clk 0:02:50]} 12. Bxc6+ {[%clk 0:02:55]}  bxc6 {[%clk 0:02:51]} 13. O-O-O {[%clk 0:02:55]}  Nf6 {[%clk 0:02:50]} 14. Rhe1 {[%clk 0:02:46]}  Nd7 {[%clk 0:02:50]} 15. Ne4 {[%clk 0:02:41]}  a5 {[%clk 0:02:47]} 16. Re3 {[%clk 0:02:35]}  Rb8 {[%clk 0:02:37]} 17. Red3 {[%clk 0:02:08]}  Rb7 {[%clk 0:02:34]} 18. Bxg7 {[%clk 0:02:05]}  Bxg7 {[%clk 0:02:14]} 19. Nd6+ {[%clk 0:02:04]}  Ke7 {[%clk 0:02:15]} 20. Nxb7 {[%clk 0:02:04]}  Ne5 {[%clk 0:02:15]} 21. Rc3 {[%clk 0:01:46]}  a4 {[%clk 0:02:12]} 22. Na5 {[%clk 0:01:38]} 1-0


[Site "https://www.chess.com"]

[Event "Titled Tuesday Blitz January 31 Late 2023"]
[White "Kanakaris, Georgios"]
[Black "Riehle, Marco"]
[WhiteFideId "4209460"]
[BlackFideId "12904392"]
[WhiteElo "2391"]
[BlackElo "2368"]
[Result "1-0"]
[Round "07"]
[TimeControl "180+2"]
[Date "2023.01.31"]
[WhiteClock "0:00:05"]
[BlackClock "0:00:44"]

1. e4 {[%clk 0:03:00]}  e5 {[%clk 0:02:59]} 2. Nf3 {[%clk 0:03:01]}  Nf6 {[%clk 0:02:59]} 3. Nc3 {[%clk 0:02:59]}  Nc6 {[%clk 0:02:59]} 4. g3 {[%clk 0:02:58]}  Bc5 {[%clk 0:02:59]} 5. Bg2 {[%clk 0:02:58]}  d6 {[%clk 0:02:59]} 6. O-O {[%clk 0:02:58]}  O-O {[%clk 0:03:00]} 7. d3 {[%clk 0:02:56]}  h6 {[%clk 0:02:59]} 8. h3 {[%clk 0:02:51]}  Re8 {[%clk 0:02:58]} 9. Qe2 {[%clk 0:02:39]}  d5 {[%clk 0:02:57]} 10. exd5 {[%clk 0:02:38]}  Nxd5 {[%clk 0:02:58]} 11. Nxd5 {[%clk 0:02:37]}  Qxd5 {[%clk 0:02:59]} 12. Be3 {[%clk 0:02:34]}  Bd7 {[%clk 0:02:53]} 13. Nd2 {[%clk 0:02:29]}  Nd4 {[%clk 0:02:47]} 14. Bxd4 {[%clk 0:02:25]}  Qxd4 {[%clk 0:02:48]} 15. Nb3 {[%clk 0:02:17]}  Qd6 {[%clk 0:02:48]} 16. Bxb7 {[%clk 0:02:17]}  Bxh3 {[%clk 0:02:42]} 17. Bxa8 {[%clk 0:02:12]}  Bxf1 {[%clk 0:02:41]} 18. Rxf1 {[%clk 0:02:11]}  Rxa8 {[%clk 0:02:42]} 19. Nxc5 {[%clk 0:02:10]}  Qxc5 {[%clk 0:02:42]} 20. Re1 {[%clk 0:02:10]}  f6 {[%clk 0:02:39]} 21. c3 {[%clk 0:02:01]}  Rb8 {[%clk 0:02:37]} 22. Qc2 {[%clk 0:01:51]}  a5 {[%clk 0:02:34]} 23. Re4 {[%clk 0:01:50]}  f5 {[%clk 0:02:31]} 24. Rc4 {[%clk 0:01:47]}  Qd6 {[%clk 0:02:29]} 25. Ra4 {[%clk 0:01:35]}  Qd5 {[%clk 0:02:17]} 26. c4 {[%clk 0:01:25]}  Qd4 {[%clk 0:02:14]} 27. b3 {[%clk 0:01:10]}  f4 {[%clk 0:01:58]} 28. c5 {[%clk 0:01:04]}  Qa1+ {[%clk 0:01:53]} 29. Kg2 {[%clk 0:01:00]}  Rf8 {[%clk 0:01:52]} 30. f3 {[%clk 0:00:32]}  fxg3 {[%clk 0:01:46]} 31. Rg4 {[%clk 0:00:24]}  Qe1 {[%clk 0:01:41]} 32. Rxg3 {[%clk 0:00:21]}  Rd8 {[%clk 0:01:40]} 33. Qc4+ {[%clk 0:00:20]}  Kh8 {[%clk 0:01:28]} 34. Qf7 {[%clk 0:00:20]}  Rg8 {[%clk 0:01:29]} 35. Qxc7 {[%clk 0:00:18]}  Qd2+ {[%clk 0:01:26]} 36. Kh3 {[%clk 0:00:17]}  Qe1 {[%clk 0:01:24]} 37. Kg2 {[%clk 0:00:13]}  Qe2+ {[%clk 0:01:25]} 38. Kg1 {[%clk 0:00:11]}  Qxd3 {[%clk 0:01:20]} 39. Qxe5 {[%clk 0:00:11]}  Qb1+ {[%clk 0:01:20]} 40. Kh2 {[%clk 0:00:10]}  Qxa2+ {[%clk 0:01:21]} 41. Rg2 {[%clk 0:00:10]}  Qxb3 {[%clk 0:01:20]} 42. c6 {[%clk 0:00:10]}  Qc4 {[%clk 0:01:18]} 43. c7 {[%clk 0:00:10]}  a4 {[%clk 0:01:18]} 44. f4 {[%clk 0:00:05]}  a3 {[%clk 0:01:14]} 45. f5 {[%clk 0:00:06]}  a2 {[%clk 0:01:12]} 46. f6 {[%clk 0:00:04]}  Qh4+ {[%clk 0:01:13]} 47. Kg1 {[%clk 0:00:04]}  Ra8 {[%clk 0:00:42]} 48. fxg7+ {[%clk 0:00:03]}  Kh7 {[%clk 0:00:42]} 49. Qf5+ {[%clk 0:00:03]}  Kg8 {[%clk 0:00:43]} 50. Qe6+ {[%clk 0:00:03]}  Kh7 {[%clk 0:00:44]} 51. g8=Q+ {[%clk 0:00:04]}  Rxg8 {[%clk 0:00:44]} 52. Qxg8# {[%clk 0:00:05]} 1-0


[Site "https://www.chess.com"]

[Event "Titled Tuesday Blitz January 31 Late 2023"]
[White "Bryakin, Mikhail"]
[Black "Kourkoulos-Arditis, Stamatis"]
[WhiteFideId "4165314"]
[BlackFideId "4221990"]
[WhiteElo "2455"]
[BlackElo "2539"]
[Result "1-0"]
[Round "07"]
[TimeControl "180+2"]
[Date "2023.01.31"]
[WhiteClock "0:00:38"]
[BlackClock "0:00:02"]

1. Nf3 {[%clk 0:02:51]}  d5 {[%clk 0:02:55]} 2. e3 {[%clk 0:02:48]}  Nf6 {[%clk 0:02:53]} 3. c4 {[%clk 0:02:48]}  e6 {[%clk 0:02:51]} 4. Nc3 {[%clk 0:02:48]}  b6 {[%clk 0:02:49]} 5. cxd5 {[%clk 0:02:47]}  exd5 {[%clk 0:02:49]} 6. d4 {[%clk 0:02:46]}  Nbd7 {[%clk 0:02:41]} 7. Bd3 {[%clk 0:02:47]}  Bb7 {[%clk 0:02:40]} 8. O-O {[%clk 0:02:47]}  a6 {[%clk 0:02:40]} 9. Bd2 {[%clk 0:02:47]}  Bd6 {[%clk 0:02:40]} 10. Nh4 {[%clk 0:02:39]}  g6 {[%clk 0:02:36]} 11. f4 {[%clk 0:02:39]}  Ne4 {[%clk 0:02:28]} 12. Nf3 {[%clk 0:02:37]}  O-O {[%clk 0:02:22]} 13. Bxe4 {[%clk 0:02:18]}  dxe4 {[%clk 0:02:21]} 14. Ne5 {[%clk 0:02:19]}  c5 {[%clk 0:01:58]} 15. Qb3 {[%clk 0:02:10]}  b5 {[%clk 0:01:43]} 16. Rae1 {[%clk 0:02:07]}  Kg7 {[%clk 0:01:04]} 17. a4 {[%clk 0:01:57]}  b4 {[%clk 0:00:58]} 18. Ne2 {[%clk 0:01:55]}  a5 {[%clk 0:00:58]} 19. Ng3 {[%clk 0:01:49]}  Nf6 {[%clk 0:00:35]} 20. f5 {[%clk 0:01:43]}  Bd5 {[%clk 0:00:34]} 21. Qd1 {[%clk 0:01:43]}  Qe7 {[%clk 0:00:20]} 22. fxg6 {[%clk 0:01:30]}  fxg6 {[%clk 0:00:17]} 23. Rf5 {[%clk 0:01:31]}  Be6 {[%clk 0:00:13]} 24. Rf4 {[%clk 0:01:25]}  Bxe5 {[%clk 0:00:09]} 25. dxe5 {[%clk 0:01:25]}  Nd5 {[%clk 0:00:07]} 26. Rxe4 {[%clk 0:01:19]}  Rf7 {[%clk 0:00:06]} 27. Bc1 {[%clk 0:01:16]}  Raf8 {[%clk 0:00:06]} 28. h4 {[%clk 0:01:13]}  Rf2 {[%clk 0:00:06]} 29. Rf1 {[%clk 0:01:11]}  Rxf1+ {[%clk 0:00:06]} 30. Nxf1 {[%clk 0:01:12]}  Qf7 {[%clk 0:00:06]} 31. Qe2 {[%clk 0:01:09]}  h5 {[%clk 0:00:03]} 32. Ng3 {[%clk 0:01:09]}  Bg4 {[%clk 0:00:03]} 33. Qe1 {[%clk 0:01:09]}  Qe6 {[%clk 0:00:03]} 34. Bd2 {[%clk 0:01:03]}  Qe7 {[%clk 0:00:04]} 35. Nh1 {[%clk 0:01:00]}  Nc7 {[%clk 0:00:04]} 36. Nf2 {[%clk 0:01:00]}  Bf5 {[%clk 0:00:04]} 37. Rc4 {[%clk 0:00:59]}  Ne6 {[%clk 0:00:04]} 38. e4 {[%clk 0:00:58]}  Bg4 {[%clk 0:00:03]} 39. Nxg4 {[%clk 0:00:58]}  hxg4 {[%clk 0:00:04]} 40. Qg3 {[%clk 0:00:59]}  Qd7 {[%clk 0:00:03]} 41. Qe3 {[%clk 0:00:54]}  Rd8 {[%clk 0:00:01]} 42. Qh6+ {[%clk 0:00:52]}  Kf7 {[%clk 0:00:01]} 43. Qh7+ {[%clk 0:00:45]}  Ng7 {[%clk 0:00:02]} 44. Rc1 {[%clk 0:00:41]}  Qxd2 {[%clk 0:00:02]} 45. Rf1+ {[%clk 0:00:42]}  Ke6 {[%clk 0:00:02]} 46. Qxg6+ {[%clk 0:00:42]}  Kxe5 {[%clk 0:00:02]} 47. Qxg7+ {[%clk 0:00:41]}  Kxe4 {[%clk 0:00:02]} 48. Qxg4+ {[%clk 0:00:40]}  Kd3 {[%clk 0:00:02]} 49. Rd1 {[%clk 0:00:40]}  Kc2 {[%clk 0:00:02]} 50. Rxd2+ {[%clk 0:00:41]}  Rxd2 {[%clk 0:00:03]} 51. h5 {[%clk 0:00:38]}  Kxb2 {[%clk 0:00:03]} 52. h6 {[%clk 0:00:39]}  c4 {[%clk 0:00:03]} 53. h7 {[%clk 0:00:39]}  Rd8 {[%clk 0:00:02]} 54. Qxc4 {[%clk 0:00:39]}  b3 {[%clk 0:00:02]} 55. Qg8 {[%clk 0:00:38]} 1-0


[Site "https://www.chess.com"]